Workbook

Sheet Instructions
B1: The Level III model uses different input properties depending on whether they are Type 1, Type 2, or Type 3 chemicals (as defined in Mackay et al. 1996). In this version of the model, the chemical 'Type' is selected based on certain chemical properties, rather than by user selection. Selection rules are as follows:
B3: Type 1 chemicals: Substances partition into air, water and octanol. These chemicals have measurable vapour pressures and solubilities. If a vapour pressure value is entered the chemical will be treated as Type 1.
C4: If the vapour pressure is not meaurable or negligible, enter a dash in vapour pressure cell, then continue to fill out the rest of the properties
B5: Type 2 chemicals: The substance does not appreciably partition into air. If a dash is entered into vapour pressure then additional partition ratio inputs will appear for media/water systems
B6: Type 3 chemicals: The substance does not appreciably partition into water. If a dash is entered in the vapour pressure input and the soil/water partition ratio value is 1000 or larger, then the required inputs will be media/air
C7: If the inputted soil/water partition ratio > 1000, ALL partition ratio inputs will change to media/air from media/water. Some values may need to be re-inputted as media/air instead of media/water
B8: Notes: | C8: After the Inputs for your chemical is filled out in the Inputs sheet, it is recommended to add the chemical to the database by clicking the radial button 'Add to DB' to easily-re-enter the correct input data in the future There are sample Type 1, 2, and 3 chemicals in the database
B9: Continue filling out environment inputs, emission and inflow amounts. Results are located in the 'Results' sheet and summarized in the 'Diagram' and 'Charts' sheets
B11: Property estimation guidelines (all equations from Mackay & Parnis 2021):
B12: - Henry's law constant (H) an be estimated as: Vapor Pressure * Molar Mass / Solubility
B13: - Reaction half-life estimated values can be obtained from EAS-E Suite (www.eas-e-suite.com), or EPI Suite for water & air half-lives only (https://www.epa.gov/tsca-screening-tools/epi-suitetm-estimation-program-interface)
B14: - Koc can be estimated as Kow * 0.35 (Seth method) or as Kow * 0.41 (Karickhoff method)
B15: - Kaw can be calculated as H/RT, where R = Gas constant and T = temperature
B16: - Partition ratios can be calculated as the ratio of Z-values, e.g., Kaw = Za/Zw
C17: > Za = 1/RT = 4x10^-4
C18: > Zw = Za/Kaw
C19: > Zo = Zw*Kow
C20: > Z_solid = Zo * OC fraction; where any solid phase can be represented including sediment, suspended sediment, soil, etc. OC fraction default values can be found in the Environment properties sheet
C21: > Z_biota = Zo * Lipid content; where any biota can be represented, including fish. Default lipid content values can be found in the Environment properties sheet
B24: References: | C24: Mackay et al. 1996. Assessing the fate of new and existing chemicals: a five-stage process. Environ. Toxicol Chem. 15(9), 1618-1626
C25: Mackay & Parnis, 2021. Multimedia Environmental Models: The Fugacity Approach. 3rd ed. CRC Press, Taylor & Francis Group. Boca Raton, FL.

Sheet Inputs - Chemical Properties
C3: CHEMICAL PROPERTIES | D3: Please complete all required fields below
D4: or
D5: Select a chemical from the database:
C6: * indicates required input
C7: Note: insert dash (-) if property is not inputted | F7: References and Notes
B9: * | C9: Chemical Name | D9: Benzo[a]pyrene
C10: CAS
B12: * | C12: Molar Mass (g/mol) | D12: 252.316
B13: * | C13: Data Temperature (°C) | D13: 25
C14: Melting Point (°C) | D14: 175
C15: Vapor Pressure (Pa) | D15: 7e-07
B16: =IF(Pressure="-","","*") -> * | C16: Henry's Law Constant (Pa·m³/mol) | D16: 0.0463
C18: Reaction Half-Lives (hours)
B19: * | C19: In Air (gaseous) | D19: 170 | F19: EAS-E Suite Database
B20: * | C20: In Aerosol | D20: 170 | F20: Assumption made that 1/2 life in air can be used
B21: * | C21: In Water (no susp. particles) | D21: 1700 | F21: EAS-E Suite Database
B22: * | C22: In Suspended Particles | D22: 1700 | F22: Assumption made that 1/2 life in sediment can be used
B23: * | C23: In Fish | D23: 26.77 | F23: EAS-E Suite Database
B24: * | C24: In Soil | D24: 17000 | F24: EAS-E Suite Database
B25: * | C25: In Sediment | D25: 55000 | F25: EAS-E Suite Database
C27: Partition Ratios
C29: logKOW | D29: 6.04
B30: =IF(Pressure="-","","*") -> * | C30: KOC | D30: 383767.3687
B31: =IF(Pressure="-","*","") ->  | C31: =IF(AND(ISNUMBER(SEARCH("N/A",Fug_Ratio)),KQW<1000),"Air-Water",IF(ISNUMBER(SEARCH("N/A",Fug_Ratio)),"Water-Air","-")) -> -
C32: =IF(AND(ISNUMBER(SEARCH("N/A",Fug_Ratio)),KQW<1000),"Aerosol-Water",IF(ISNUMBER(SEARCH("N/A",Fug_Ratio)),"Aerosol-Air","-")) -> -
C33: =IF(AND(ISNUMBER(SEARCH("N/A",Fug_Ratio)),KQW<1000),"Soil-Water (L/kg)",IF(ISNUMBER(SEARCH("N/A",Fug_Ratio)),"Soilr-Air","-")) -> -
C34: =IF(AND(ISNUMBER(SEARCH("N/A",Fug_Ratio)),KQW<1000),"Suspended Particles-Water (L/kg)",IF(ISNUMBER(SEARCH("N/A",Fug_Ratio)),"Suspended Particles-Air","-")) -> -
C35: =IF(AND(ISNUMBER(SEARCH("N/A",Fug_Ratio)),KQW<1000),"Sediment-Water (L/kg)",IF(ISNUMBER(SEARCH("N/A",Fug_Ratio)),"Sediment-Air","-")) -> -
C36: =IF(AND(ISNUMBER(SEARCH("N/A",Fug_Ratio)),KQW<1000),"Fish-Water (L/kg)",IF(ISNUMBER(SEARCH("N/A",Fug_Ratio)),"Fish-Air","-")) -> -

Sheet Inputs - Environment
C3: ENVIRONMENTAL PROPERTIES
C5: Complete all fields or select environment from database:
C7: Environment Name | D7: EQC 2012 Hughes et al.
C9: Volume Fractions | F9: Advective Flow Residence Times (h)
C10: Aerosol in Air | D10: 2e-11 | F10: Air | G10: 100
C11: Susp. Particles in Water | D11: 5e-06 | F11: Water | G11: 1000
C12: Fish in Water | D12: 1e-06 | F12: Sediment (burial) | G12: 50000
C13: Air in Soil | D13: 0.2
C14: Water in Soil | D14: 0.3 | F14: Organic Carbon (g/g)
C15: Solids in Soil | D15: 0.5 | F15: Susp. Particles | G15: 0.2
C16: Water in Sediment | D16: 0.8 | F16: Fish Lipid | G16: 0.05
C17: Solids in Sediment | D17: 0.2 | F17: Soil | G17: 0.02
F18: Sediment | G18: 0.04
C19: Area (m2)
C20: Air | D20: 100000000000 | F20: Transport velocities (m/h)
C21: Water | D21: 10000000000 | F21: Air-side air-water MTC | G21: 5
C22: Soil | D22: 90000000000 | F22: Water-side air-water MTC | G22: 0.05
C23: Sediment | D23: 10000000000 | F23: Rain rate | G23: 0.0001
F24: Aerosol dry deposition | G24: 6e-10
C25: Depth (m) | F25: Soil-air phase diffusion MTC | G25: 0.02
C26: Air | D26: 1000 | F26: Soil-water phase diffusion MTC | G26: 1e-05
C27: Water | D27: 20 | F27: Soil-air boundary layer MTC | G27: 5
C28: Soil | D28: 0.2 | F28: Water-side sed.-water diffusion MTC | G28: 0.0001
C29: Sediment | D29: 0.05 | F29: Sediment deposition | G29: 5e-07
F30: Sediment resuspension | G30: 2e-07
C31: Densities for subcompartments (kg/m³) | F31: Soil-water runoff rate | G31: 5e-05
C32: Air in Air | D32: 1.2 | F32: Soil-solids runoff rate | G32: 1e-08
C33: Aerosol in Air | D33: 2000
C34: Water in Water | D34: 1000 | F34: Scavenging ratio (unitless) | G34: 200000
C35: Sup. Particles in Water | D35: 1500
C36: Fish in Water | D36: 1000
C37: Air in Soil | D37: 1.2
C38: Water in Soil | D38: 1000
C39: Solid in Soil | D39: 2400
C40: Water in Sediment | D40: 1000
C41: Solid in Sediment | D41: 2400

Sheet Emissions and Inflows
C3: Emission Rate
C5: Into Air | D5: 1000 | E5: kg/h
C6: Into Water | D6: 1000 | E6: kg/h
C7: Into Soil | D7: 1000 | E7: kg/h
C8: Into Sediment | E8: kg/h
C10: Advective Inflow Concentrations
C12: Concentration in Air | E12: ng/m³
C13: Concentration in Water | E13: ng/L
C15: Additional Comments

Sheet Results
C3: Level III Results
C5: Chemical Name | D5: =ChemName -> Benzo[a]pyrene
C6: Environment Name | D6: =EnvName -> EQC 2012 Hughes et al.
C9: Mass Balance
D11: Emission Rate
D12: kg/h | E12: mol/h
C13: Air | D13: =Emis_kgph -> 1000 | E13: =D13*1000/MolarMass -> 3963.284136
C14: Water | D14: ='Emissions and Inflows'!D6 -> 1000 | E14: =D14*1000/MolarMass -> 3963.284136
C15: Soil | D15: ='Emissions and Inflows'!D7 -> 1000 | E15: =D15*1000/MolarMass -> 3963.284136
C16: Sediment | D16: ='Emissions and Inflows'!D8 -> 0 | E16: =D16*1000/MolarMass -> 0
D17: Total: | E17: =SUM(E13:E16) -> 11889.85241
C18: Sediment
D19: Inflow Rate | F19: Concentration
D20: kg/h | E20: mol/h | F20: ng/m³ | G20: ng/L | H20: kg/m³ | I20: mol/m³
C21: Air | D21: =E21*MolarMass/1000 -> 0 | E21: =F75*I21 -> 0 | F21: =ConcWatNgpL -> 0 | G21: - | H21: =F21*0.000000000001 -> 0 | I21: =F21*0.000000001/MolarMass -> 0
C22: Water | D22: =E22*MolarMass/1000 -> 0 | E22: =F79*I22 -> 0 | F22: - | G22: =ConcAirNgpm3 -> 0 | H22: =G22*0.000000001 -> 0 | I22: =G22*0.000001/MolarMass -> 0
D23: Total: | E23: =SUM(E21:E22) -> 0
C24: Total | D24: =SUM(D13:D16)+SUM(D21:D22) -> 3000 | E24: =E17+E23 -> 11889.85241
D26: kg | E26: mol
C27: Total Amount of Chemical in System | D27: =SUM(I52,I56,I61,I66) -> 47671890.53 | E27: =SUM(H52,H56,H61,H66) -> 188937247.5
D29: Loss rate | F29: D Value | G29: Res. Time
D30: kg/h | E30: mol/h | F30: m³/h | G30: hours | H30: days
C31: Advection | D31: =H88 -> 840.8797554 | E31: =I88 -> 3332.645395 | F31: =SUM(G74:G82) -> 1.943511192e+10 | G31: =E$27/(E31+0.00000000001) -> 56692.87461 | H31: =G31/24 -> 2362.203109
C32: Reaction | D32: =H108 -> 2159.120245 | E32: =I108 -> 8557.207013 | F32: =SUM(G95:G106) -> 1.670008844e+11 | G32: =E$27/(E32+0.00000000001) -> 22079.31247 | H32: =G32/24 -> 919.9713528
C33: Overall | D33: =SUM(D31:D32) -> 3000 | E33: =SUM(E31:E32) -> 11889.85241 | F33: =SUM(F31:F32) -> 1.864359963e+11 | G33: =E$27/(E33+0.00000000001) -> 15890.63018 | H33: =G33/24 -> 662.1095907
C35: Fugacity
D37: Fugacity | E37: VZ
D38: Pa | E38: mol/Pa
C39: Air | D39: =((E13+E21)/(G75+G95+G114+G115)+E15*G118/(G104+G118+G119)/(G75+G95+G114+G115)+D40*(G116/(G75+G95+G114+G115)))/(1-G118*G115/(G75+G95+G114+G115)/(G104+G118+G119)) -> 4.634279029e-07 | E39: =Area_Air*Depth_Air*D52 -> 2.674493485e+11
C40: Water | D40: =IF(Area_water=0,0,(E14+E22+((E13+E21)/(G75+G95+G114+G115)+E15*G118/(G104+G118+G119)/(G75+G95+G114+G115))*(G114+G119*G115/(G104+G118+G119))/(1-G118*G115/(G75+G95+G114+G115)/(G104+G118+G119))+E15*G119/(G104+G118+G119)+E16*G120/(G86+G106+G120))/((G79+G99+G116+G117+0)-(((G116/(G75+G95+G114+G115))*(G114+G119*G115/(G104+G118+G119)))/(1-G118*G115/(G75+G95+G114+G115)/(G104+G118+G119)))-((G117*G120)/(G86+G106+G120)))) -> 1.780800555e-07 | E40: =Area_water*'Inputs - Environment'!D27*D56 -> 7.043062474e+12
C41: Soil | D41: =(E15+D39*G115)/(G104+G118+G119) -> 4.066363996e-08 | E41: ='Inputs - Environment'!D22*'Inputs - Environment'!D28*D61 -> 3.580840245e+15
C42: Sediment | D42: =IF(Area_water=0,0,(E16+D40*G117)/(G86+G106+G120)) -> 5.271290715e-07 | E42: ='Inputs - Environment'!D23*'Inputs - Environment'!D29*D66 -> 7.958027514e+13
D43: Total: | E43: =SUM(E39:E42) -> 3667731031544727
C44: Fugacity Ratio | D44: =IF(Pressure="-","N/A",IF(MeltPt>DataTemp,EXP(6.79*(1-(MeltPt+273.15)/(DataTemp+273.15))),1)) -> 0.03284138771
C45: Sub-cooled Vapour Presssure (Pa) | D45: =Pressure/Fug_Ratio -> 2.131456826e-05
C47: Phase Properties
D49: Z Value | E49: Concentration | H49: Quantity
D50: mol/m³*Pa | E50: mol/m³ | F50: g/m³ | G50: µg/kg | H50: mol | I50: kg | J50: %
C51: Air
C52: Bulk | D52: =((1-Aers_Fraction)*Results!D53+Aers_Fraction*Results!D54) -> 0.002674493485 | E52: =D$39*D52 -> 1.239434907e-09 | F52: =E52*MolarMass -> 3.12729258e-07 | G52: - | H52: =E52*Area_Air*Depth_Air -> 123943.4907 | I52: =H52*MolarMass/1000 -> 31272.9258 | J52: =100*H52/SUM(H52,H56,H61,H66) -> 0.06560034739
C53: Air Vapour | D53: =IF(AND(ISNUMBER(SEARCH("-",Pressure)),KQW<1000),D57*KAW,IF(ISNUMBER(SEARCH("-",Pressure)),(1/8.3144598/(DataTemp+273.15)),(1/8.3144598/(DataTemp+273.15)))) -> 0.0004033955922 | E53: =D$39*D53 -> 1.869447733e-10 | F53: =E53*MolarMass -> 4.716915742e-08 | G53: - | H53: =E53*Area_Air*Depth_Air*(1-Aers_Fraction) -> 18694.47733 | I53: =(MolarMass*H53)/1000 -> 4716.915742 | J53: =100*H53/SUM(H52,H56,H61,H66) -> 0.009894543072
C54: Dry Aerosols | D54: =IF(AND(ISNUMBER(SEARCH("-",Pressure)),KQW<1000),D57*'Inputs - Chemical Properties'!D32,IF(ISNUMBER(SEARCH("-",Pressure)),D53*'Inputs - Chemical Properties'!D32,((D53*6000000)/(Pressure/D44)))) -> 113554894.6 | E54: =D$39*D54 -> 52.62450668 | F54: =E54*MolarMass -> 13278.00503 | G54: =F54*1000000/Dens_Aers -> 6639002.514 | H54: =E54*Area_Air*Depth_Air*Aers_Fraction -> 105249.0134 | I54: =(MolarMass*H54)/1000 -> 26556.01006 | J54: =100*H54/SUM(H52,H56,H61,H66) -> 0.05570580432
C55: Water
C56: Bulk | D56: =((1-Vol_Wat-Fish_Fraction)*Results!D57+Vol_Wat*Results!D58+Fish_Fraction*Results!D59) -> 35.21531237 | E56: =D$40*D56 -> 6.271144783e-06 | F56: =E56*MolarMass -> 0.001582310167 | G56: - | H56: =E56*Area_water*'Inputs - Environment'!D27 -> 1254228.957 | I56: =(MolarMass*H56)/1000 -> 316462.0334 | J56: =100*H56/SUM(H52,H56,H61,H66) -> 0.6638336132
C57: Water | D57: =IF(AND(ISNUMBER(SEARCH("-",Pressure)),KQW<1000),1,IF(ISNUMBER(SEARCH("-",Pressure)),(D53*KAW),(1/Henry_Const))) -> 21.59827214 | E57: =D$40*D57 -> 3.846221502e-06 | F57: =E57*MolarMass -> 0.0009704632245 | G57: - | H57: =E57*Area_water*'Inputs - Environment'!D27*(1-Vol_Wat-Fish_Fraction) -> 769239.6849 | I57: =(MolarMass*H57)/1000 -> 194091.4803 | J57: =100*H57/SUM(H52,H56,H61,H66) -> 0.4071403046
C58: Dry Suspended Particles | D58: =IF(AND(ISNUMBER(SEARCH("-",Pressure)),KQW<1000),D57*(KSus*Dens_SuspPart/1000),IF(ISNUMBER(SEARCH("-",Pressure)),D53*KSus,(D57*Dens_SuspPart*'Inputs - Environment'!G15*KOC/1000))) -> 2486613.62 | E58: =D$40*D58 -> 0.4428162915 | F58: =E58*MolarMass -> 111.7296354 | G58: =F58*1000000/Dens_SuspPart -> 74486.42361 | H58: =E58*Area_water*'Inputs - Environment'!D27*Vol_Wat -> 442816.2915 | I58: =(MolarMass*H58)/1000 -> 111729.6354 | J58: =100*H58/SUM(H52,H56,H61,H66) -> 0.2343721513
C59: Fish | D59: =IF(AND(ISNUMBER(SEARCH("-",Pressure)),KQW<1000),D57*KFish*Dens_Fish/1000,IF(ISNUMBER(SEARCH("-",Pressure)),(D53*KFish),D57*'Inputs - Environment'!G16*10^logKow)) -> 1184101.724 | E59: =D$40*D59 -> 0.2108649007 | F59: =E59*MolarMass -> 53.20458829 | G59: =F59*1000000/Dens_Fish -> 53204.58829 | H59: =E59*Area_water*'Inputs - Environment'!D27*Fish_Fraction -> 42172.98015 | I59: =(MolarMass*H59)/1000 -> 10640.91766 | J59: =100*H59/SUM(H52,H56,H61,H66) -> 0.02232115727
C60: Soil
C61: Bulk | D61: =('Inputs - Environment'!D15*Results!D64+'Inputs - Environment'!D13*Results!D62+'Inputs - Environment'!D14*Results!D57) -> 198935.5691 | E61: =D$41*D61 -> 0.00808944436 | F61: =E61*MolarMass -> 2.041096243 | G61: =F61*1000000/('Inputs - Environment'!D13*Dens_Soil+'Inputs - Environment'!D14*Dens_Sed+'Inputs - Environment'!D15*'Inputs - Environment'!D39) -> 1360.513147 | H61: =E61*'Inputs - Environment'!D22*'Inputs - Environment'!D28 -> 145609998.5 | I61: =(MolarMass*H61)/1000 -> 36739732.38 | J61: =100*H61/SUM(H52,H56,H61,H66) -> 77.06791563
C62: Air | D62: =IF(AND(ISNUMBER(SEARCH("-",Pressure)),KQW<1000),D53,IF(ISNUMBER(SEARCH("-",Pressure)),D53,D53)) -> 0.0004033955922 | E62: =D$41*D62 -> 1.640353312e-11 | F62: =E62*MolarMass -> 4.138873864e-09 | G62: - | H62: =E62*'Inputs - Environment'!D22*'Inputs - Environment'!D28*'Inputs - Environment'!D13 -> 0.05905271925 | I62: =(MolarMass*H62)/1000 -> 0.01489994591 | J62: =100*H62/SUM(H52,H56,H61,H66) -> 3.125520247e-08
C63: Water | D63: =IF(AND(ISNUMBER(SEARCH("-",Pressure)),KQW<1000),D57,IF(ISNUMBER(SEARCH("-",Pressure)),D57,D57)) -> 21.59827214 | E63: =D$41*D63 -> 8.782643621e-07 | F63: =E63*MolarMass -> 0.0002216001508 | G63: =F63*1000000/Dens_Sed -> 0.2216001508 | H63: =E63*'Inputs - Environment'!D22*'Inputs - Environment'!D28*'Inputs - Environment'!D14 -> 4742.627555 | I63: =(MolarMass*H63)/1000 -> 1196.640814 | J63: =100*H63/SUM(H52,H56,H61,H66) -> 0.002510160182
C64: Dry Solids | D64: =IF(AND(ISNUMBER(SEARCH("-",Pressure)),KQW<1000),D57*KQW*'Inputs - Environment'!D39/1000,IF(ISNUMBER(SEARCH("-",Pressure)),D53*KQW,(D57*'Inputs - Environment'!D39*'Inputs - Environment'!G17*KOC/1000))) -> 397858.1792 | E64: =D$41*D64 -> 0.01617836175 | F64: =E64*MolarMass -> 4.082059524 | G64: =F64*1000000/'Inputs - Environment'!D39 -> 1700.858135 | H64: =E64*'Inputs - Environment'!D22*'Inputs - Environment'!D28*'Inputs - Environment'!D15 -> 145605255.8 | I64: =(MolarMass*H64)/1000 -> 36738535.72 | J64: =100*H64/SUM(H52,H56,H61,H66) -> 77.06540544
C65: Sediment
C66: Bulk | D66: ='Inputs - Environment'!D17*Results!D68+'Inputs - Environment'!D16*Results!D67 -> 159160.5503 | E66: =D$42*D66 -> 0.0838981531 | F66: =E66*MolarMass -> 21.1688464 | G66: =F66*1000000/('Inputs - Environment'!D16*'Inputs - Environment'!D40+'Inputs - Environment'!D17*'Inputs - Environment'!D41) -> 16538.16125 | H66: =E66*'Inputs - Environment'!D23*'Inputs - Environment'!D29 -> 41949076.55 | I66: =(MolarMass*H66)/1000 -> 10584423.2 | J66: =100*H66/SUM(H52,H56,H61,H66) -> 22.20265041
C67: Water | D67: =IF(AND(ISNUMBER(SEARCH("-",Pressure)),KQW<1000),D57,IF(ISNUMBER(SEARCH("-",Pressure)),D57,D57)) -> 21.59827214 | E67: =D$42*D67 -> 1.138507714e-05 | F67: =E67*MolarMass -> 0.002872637123 | G67: - | H67: =E67*'Inputs - Environment'!D23*'Inputs - Environment'!D29*'Inputs - Environment'!D16 -> 4554.030856 | I67: =(MolarMass*H67)/1000 -> 1149.054849 | J67: =100*H67/SUM(H52,H56,H61,H66) -> 0.002410340426
C68: Dry Solids | D68: =IF(AND(ISNUMBER(SEARCH("-",Pressure)),KQW<1000),D57*K_Sed*'Inputs - Environment'!D41/1000,IF(ISNUMBER(SEARCH("-",Pressure)),D53*K_Sed,(D57*'Inputs - Environment'!D41*'Inputs - Environment'!G18*KOC/1000))) -> 795716.3583 | E68: =D$42*D68 -> 0.4194452252 | F68: =E68*MolarMass -> 105.8327414 | G68: =F68*1000000/'Inputs - Environment'!D41 -> 44096.9756 | H68: =E68*'Inputs - Environment'!D23*'Inputs - Environment'!D29*'Inputs - Environment'!D17 -> 41944522.52 | I68: =(MolarMass*H68)/1000 -> 10583274.14 | J68: =100*H68/SUM(H52,H56,H61,H66) -> 22.20024007
C70: Advection
D72: Res. Time | F72: Flow Rate | G72: D Value | H72: Removal Rate | J72: % of Total
D73: hours | E73: days | F73: m³/h | G73: mol/Pa*h | H73: kg/h | I73: mol/h | J73: Losses
C74: Air
C75: Bulk | D75: =AdvFlowAirH -> 100 | E75: =D75/24 -> 4.166666667 | F75: =Area_Air*Depth_Air/D75 -> 1000000000000 | G75: =G76+G77 -> 2674493485 | H75: =I75*MolarMass/1000 -> 312.729258 | I75: =D39*G75 -> 1239.434907 | J75: =100*I75/E$33 -> 10.4243086
C76: Air Vapour | D76: - | E76: - | F76: =Area_Air*Depth_Air*(1-Aers_Fraction)/Results!D75 -> 999999999980 | G76: =F76*D53 -> 403395592.2 | H76: =I76*MolarMass/1000 -> 47.16915742 | I76: =D39*G76 -> 186.9447733 | J76: =100*I76/E$33 -> 1.572305247
C77: Aerosol | D77: - | E77: - | F77: =Area_Air*Depth_Air*Aers_Fraction/D75 -> 20 | G77: =F77*D54 -> 2271097893 | H77: =I77*MolarMass/1000 -> 265.5601006 | I77: =D39*G77 -> 1052.490134 | J77: =100*I77/E$33 -> 8.852003352
C78: Water
C79: Bulk | D79: =AdvFlowWatH -> 1000 | E79: =D79/24 -> 41.66666667 | F79: =Area_water*'Inputs - Environment'!D27/D79 -> 200000000 | G79: =SUM(G80:G82) -> 7043062474 | H79: =I79*MolarMass/1000 -> 316.4620334 | I79: =D40*G79 -> 1254.228957 | J79: =100*I79/E$33 -> 10.54873445
C80: Water | D80: - | E80: - | F80: =Area_water*'Inputs - Environment'!D27*(1-Vol_Wat-Fish_Fraction)/Results!D79 -> 199998800 | G80: =F80*D57 -> 4319628510 | H80: =I80*MolarMass/1000 -> 194.0914803 | I80: =D40*G80 -> 769.2396849 | J80: =100*I80/E$33 -> 6.469716012
C81: Susp. Particles | D81: - | E81: - | F81: =Area_water*'Inputs - Environment'!D27*Vol_Wat/Results!D79 -> 1000 | G81: =F81*D58 -> 2486613620 | H81: =I81*MolarMass/1000 -> 111.7296354 | I81: =D40*G81 -> 442.8162915 | J81: =100*I81/E$33 -> 3.72432118
C82: Fish | D82: - | E82: - | F82: =Area_water*'Inputs - Environment'!D27*Fish_Fraction/Results!D79 -> 200 | G82: =F82*D59 -> 236820344.7 | H82: =I82*MolarMass/1000 -> 10.64091766 | I82: =D40*G82 -> 42.17298015 | J82: =100*I82/E$33 -> 0.3546972553
C83: Soil
C84: Bulk | D84: 100000000000 | E84: =D84/24 -> 4166666667 | F84: - | G84: - | H84: - | I84: - | J84: -
C85: Sediment
C86: Bulk | D86: =AdvFlowSedH -> 50000 | E86: =D86/24 -> 2083.333333 | F86: ='Inputs - Environment'!D23*'Inputs - Environment'!D29/D86 -> 10000 | G86: =F86*D66 -> 1591605503 | H86: =I86*MolarMass/1000 -> 211.688464 | I86: =D42*G86 -> 838.981531 | J86: =100*I86/E$33 -> 7.056282132
C88: Total | G88: =G75+G79+G86 -> 1.130916146e+10 | H88: =SUM(H75,H79,H86) -> 840.8797554 | I88: =SUM(I75,I79,I86) -> 3332.645395 | J88: =SUM(J75,J79,J86) -> 28.02932518
C90: Reaction
D92: Half-Life | F92: Rate Constant | G92: D Value | H92: Removal Rate | J92: % of Total
D93: hours | E93: days | F93: 1/h | G93: mol/Pa*h | H93: kg/h | I93: mol/h | J93: Losses
C94: Air
C95: Bulk | D95: - | E95: - | F95: - | G95: =SUM(G96:G97) -> 1090480952 | H95: =I95*MolarMass/1000 -> 127.5102373 | I95: =D$39*G95 -> 505.3593007 | J95: =100*I95/E$33 -> 4.250341244
C96: Air Vapour | D96: =HL_Air -> 170 | E96: =D96/24 -> 7.083333333 | F96: =-LN(0.5)/D96 -> 0.004077336356 | G96: =D53*Area_Air*Depth_Air*(1-Aers_Fraction)*F96 -> 164477951.4 | H96: =I96*MolarMass/1000 -> 19.23245204 | I96: =D$39*G96 -> 76.22367208 | J96: =100*I96/E$33 -> 0.6410817348
C97: Aerosol | D97: ='Inputs - Chemical Properties'!D20 -> 170 | E97: =D97/24 -> 7.083333333 | F97: =-LN(0.5)/D97 -> 0.004077336356 | G97: =D54*F97*Area_Air*Depth_Air*Aers_Fraction -> 926003000.7 | H97: =I97*MolarMass/1000 -> 108.2777853 | I97: =D$39*G97 -> 429.1356287 | J97: =100*I97/E$33 -> 3.609259509
C98: Water
C99: Bulk | D99: - | E99: - | F99: - | G99: =SUM(G100:G102) -> 8907048464 | H99: =I99*MolarMass/1000 -> 400.2154857 | I99: =D$40*G99 -> 1586.167685 | J99: =100*I99/E$33 -> 13.34051619
C100: Water | D100: ='Inputs - Chemical Properties'!D21 -> 1700 | E100: =D100/24 -> 70.83333333 | F100: =-LN(0.5)/D100 -> 0.0004077336356 | G100: =D57*Area_water*'Inputs - Environment'!D27*(1-Vol_Wat-Fish_Fraction)*F100 -> 1761257837 | H100: =I100*MolarMass/1000 -> 79.13762492 | I100: =D$40*G100 -> 313.6448934 | J100: =100*I100/E$33 -> 2.637920831
C101: Susp. Particles | D101: ='Inputs - Chemical Properties'!D22 -> 1700 | E101: =D101/24 -> 70.83333333 | F101: =-LN(0.5)/D101 -> 0.0004077336356 | G101: =D58*Area_water*'Inputs - Environment'!D27*Vol_Wat*F101 -> 1013876012 | H101: =I101*MolarMass/1000 -> 45.55593045 | I101: =D$40*G101 -> 180.5510965 | J101: =100*I101/E$33 -> 1.518531015
C102: Fish | D102: ='Inputs - Chemical Properties'!D23 -> 26.77 | E102: =D102/24 -> 1.115416667 | F102: =-LN(0.5)/D102 -> 0.02589268512 | G102: =D59*Area_water*'Inputs - Environment'!D27*Fish_Fraction*Results!F102 -> 6131914615 | H102: =I102*MolarMass/1000 -> 275.5219303 | I102: =D$40*G102 -> 1091.971695 | J102: =100*I102/E$33 -> 9.184064342
C103: Soil
C104: Bulk | D104: ='Inputs - Chemical Properties'!D24 -> 17000 | E104: =D104/24 -> 708.3333333 | F104: =-LN(0.5)/D104 -> 4.077336356e-05 | G104: =D61*'Inputs - Environment'!D22*'Inputs - Environment'!D28*Results!F104 -> 1.460029012e+11 | H104: =I104*MolarMass/1000 -> 1498.002465 | I104: =D41*G104 -> 5937.009406 | J104: =100*I104/E$33 -> 49.93341551
C105: Sediment
C106: Bulk | D106: =HL_Sed -> 55000 | E106: =D106/24 -> 2291.666667 | F106: =-LN(0.5)/D106 -> 1.260267601e-05 | G106: =D66*F106*'Inputs - Environment'!D23*'Inputs - Environment'!D29 -> 1002924424 | H106: =I106*MolarMass/1000 -> 133.3920563 | I106: =D42*G106 -> 528.6706207 | J106: =100*I106/E$33 -> 4.446401877
C108: Total | G108: =G95+G99+G104+G106 -> 1.57003355e+11 | H108: =SUM(H95,H99,H104,H106) -> 2159.120245 | I108: =SUM(I95,I99,I104,I106) -> 8557.207013 | J108: =SUM(J95,J99,J104,J106) -> 71.97067482
C110: Intermedia Transport
D112: Half Times | F112: Equiv. Flows | G112: D Value | H112: Transport Rate
D113: hours | E113: days | F113: m³/h | G113: mol/Pa*h | H113: kg/h | I113: mol/h
C114: Air to water | D114: =IF(F114<=0,0,LN(2)*Area_Air*Depth_Air/F114) -> 373.7912108 | E114: =D114/24 -> 15.57463378 | F114: =IF(D52<=0,0,G114/D52) -> 1.854369928e+11 | G114: =D128+D135+D130 -> 495950029 | H114: =I114*MolarMass/1000 -> 57.99157315 | I114: =G114*D39 -> 229.8370819
C115: Air to soil | D115: =IF(F115<=0,0,LN(2)*Area_Air*Depth_Air/F115) -> 43.1069327 | E115: =D115/24 -> 1.796122196 | F115: =IF(D52<=0,0,G115/D52) -> 1.607971473e+12 | G115: =H132+D131+D139 -> 4300509228 | H115: 502.8597255 | I115: =G115*D39 -> 1992.975973
C116: Water to air | D116: =IF(F116<=0,0,LN(2)*Area_water*'Inputs - Environment'!D27/F116) -> 242491.3401 | E116: 10103.80584 | F116: =IF(D56<=0,0,G116/D56) -> 571688.1933 | G116: =D128 -> 20132178.3 | H116: 0.9045880406 | I116: =G116*D40 -> 3.585139431
C117: Water to sediment | D117: =IF(F117<=0,0,LN(2)*Area_water*'Inputs - Environment'!D27/F117) -> 391.9718723 | E117: 16.33216135 | F117: =IF(D56<=0,0,G117/D56) -> 353671898.2 | G117: =H134+H136 -> 1.245466637e+10 | H117: 559.6186403 | I117: =G117*D40 -> 2217.927679
C118: Soil to air | D118: =IF(F118<=0,0,LN(2)*'Inputs - Environment'!D22*'Inputs - Environment'!D28/F118) -> 136762794.7 | E118: 5698449.779 | F118: =IF(D61<=0,0,G118/D61) -> 91.22838764 | G118: =H132 -> 18148571.22 | H118: 0.1862059193 | I118: =G118*D41 -> 0.7379869659
C119: Soil to water | D119: =IF(F119<=0,0,LN(2)*'Inputs - Environment'!D22*'Inputs - Environment'!D29/F119) -> 1362970.785 | E119: 56790.44937 | F119: =IF(D61<=0,0,G119/D61) -> 2288.502694 | G119: =H126+H127 -> 455264585.9 | H119: 4.671054251 | I119: =G119*D41 -> 18.51271521
C120: Sediment to water | D120: =IF(F120<=0,0,LN(2)*'Inputs - Environment'!D23*'Inputs - Environment'!D29/F120) -> 34197.01402 | E120: 1424.875584 | F120: =IF(D66<=0,0,G120/D66) -> 10134.61556 | G120: =H134+H137 -> 1613030989 | H120: 214.53812 | I120: =G120*D42 -> 850.2755275
C122: Process D Values
C124: All D values are in units of mol/Pa*h
C126: Air-water diffusion (air-side) | D126: =Area_water*'Inputs - Environment'!G21*Results!D53 -> 20169779.61 | F126: Soil to water runoff (water) | H126: ='Inputs - Environment'!D22*'Inputs - Environment'!G31*Results!D57 -> 97192224.62
C127: Air-water diffusion (water-side) | D127: =Area_water*'Inputs - Environment'!G22*Results!D57 -> 1.079913607e+10 | F127: Soil to water runoff (solids) | H127: ='Inputs - Environment'!D22*'Inputs - Environment'!G32*Results!D64 -> 358072361.2
C128: Air-water diffusion (total) | D128: =IF(OR(D126<=0,D127<=0),0,1/((1/D126)+(1/D127))) -> 20132178.3
F129: Soil-air diffusion (air-phase) | H129: ='Inputs - Environment'!D22*'Inputs - Environment'!G25*Results!D53 -> 726112.0659
C130: Rain dissolution to water | D130: =Area_water*'Inputs - Environment'!G23*Results!D57 -> 21598272.14 | F130: Soil-air diffusion (water-phase) | H130: ='Inputs - Environment'!D22*'Inputs - Environment'!G26*Results!D57 -> 19438444.92
C131: Rain dissolution to soil | D131: ='Inputs - Environment'!D22*'Inputs - Environment'!G23*Results!D57 -> 194384449.2 | F131: Soil-air diffusion (boundary layer) | H131: ='Inputs - Environment'!D22*'Inputs - Environment'!G27*Results!D53 -> 181528016.5
F132: Soil-air diffusion (total) | H132: =IF(OR(H129=0,H130=0,H131=0),0,1/((1/H131)+(1/(H129+H130)))) -> 18148571.22
C133: Aerosol deposition to water (dry) | D133: =Area_water*Aers_Fraction*'Inputs - Environment'!G24*Results!D54 -> 0.01362658736
C134: Aerosol deposition to water (wet) | D134: =Area_water*Aers_Fraction*'Inputs - Environment'!G23*Results!D54*'Inputs - Environment'!G34 -> 454219578.6 | F134: Water-sediment diffusion | H134: =Area_water*'Inputs - Environment'!G28*Results!D57 -> 21598272.14
C135: Aerosol deposition to water (total) | D135: =D133+D134 -> 454219578.6
F136: Water to sediment deposition | H136: =Area_water*'Inputs - Environment'!G29*Results!D58 -> 1.24330681e+10
C137: Aerosol deposition to soil (dry) | D137: ='Inputs - Environment'!D22*Aers_Fraction*'Inputs - Environment'!G24*D54 -> 0.1226392862 | F137: Sediment to water resuspension | H137: ='Inputs - Environment'!D23*'Inputs - Environment'!G30*Results!D68 -> 1591432717
C138: Aerosol deposition to soil (wet) | D138: ='Inputs - Environment'!D22*Aers_Fraction*'Inputs - Environment'!G23*Results!D54*'Inputs - Environment'!G34 -> 4087976207
C139: Aerosol deposition to soil (total) | D139: =D137+D138 -> 4087976207

Sheet Diagram
D2: Chemical Name: | F2: =ChemName -> Benzo[a]pyrene
D4: Lake Name: | F4: =EnvName -> EQC 2012 Hughes et al.
A6: Total Mass | B6: =Results!D27 -> 47671890.53 | C6: kg | G6: =Results!E21 -> 0 | J6: =Results!I52 -> 31272.9258 | K6: kg | L6: =Results!I75 -> 1239.434907
B7: =Results!E17 -> 11889.85241 | C7: mol/h | J7: =Results!J52 -> 0.06560034739 | K7: %
G8: =Results!E13 -> 3963.284136 | J8: =Results!F52*1000000000 -> 312.729258 | K8: ng/m³
J9: =Results!D39 -> 4.634279029e-07 | K9: Pa | M9: =Results!I95 -> 505.3593007
B11: =Results!G33 -> 15890.63018 | C11: h
B12: =Results!G32 -> 22079.31247 | C12: h
B13: =Results!G31 -> 56692.87461 | C13: h | H13: =Results!I118 -> 0.7379869659
K14: =Results!I114 -> 229.8370819
A16: All transfer rates in | C16: mol/h | E16: =Results!E15 -> 3963.284136 | M16: =Results!I116 -> 3.585139431
I17: =Results!I115 -> 1992.975973
G20: =Results!I61 -> 36739732.38 | H20: kg | O20: =Results!I79 -> 1254.228957
G21: =Results!J61 -> 77.06791563 | H21: % | J21: =Results!I119 -> 18.51271521
G22: =Results!G64*1000 -> 1700858.135 | H22: ng/g solids | L22: =Results!I56 -> 316462.0334 | M22: kg
G23: =Results!D41 -> 4.066363996e-08 | H23: Pa | L23: =Results!J56 -> 0.6638336132 | M23: %
J24: =Results!E22 -> 0 | L24: =Results!F56*1000000 -> 1582.310167 | M24: ng/L
E25: =Results!I104 -> 5937.009406 | L25: =Results!D40 -> 1.780800555e-07 | M25: Pa | P25: =Results!I99 -> 1586.167685
J29: =Results!E14 -> 3963.284136
L31: =Results!I120 -> 850.2755275 | N31: =Results!I117 -> 2217.927679
B36: - | N36: =Results!I86 -> 838.981531
H38: =Results!E16 -> 0 | K38: =Results!I66 -> 10584423.2 | L38: kg
K39: =Results!J66 -> 22.20265041 | L39: %
K40: =Results!G68*1000 -> 44096975.6 | L40: ng/g solids
K41: =Results!D42 -> 5.271290715e-07 | L41: Pa | O41: =Results!I106 -> 528.6706207

Sheet Charts

Sheet Chemical Database
K1: =IF(OR(B1="",G1=""),"",G1*C1/I1) -> 
M7: Half-Lives | AA7: Partition Ratios
A8: CAS | B8: Chemical Name | C8: Molar Mass | D8: Data Temp. | E8: Melting Point | G8: Vapor pressure | I8: Solubility in Water | K8: Henry's Law Constant | M8: In Air | O8: In Aerosol | Q8: In Water | S8: In Susp. Particles | U8: In Fish | W8: In Soil | Y8: In Sediment | AA8: logKOW | AC8: KOC | AD8: Air-Water (KAW)/Water-Air | AF8: Aerosol-Water/Aerosol-Air | AH8: Soil-Water/Soil-Air | AJ8: Suspended Particles-Water/Suspended Particles-Air | AL8: Sediment-Water/Sediment-Air | AN8: Fish-Water/Fish-Air | AP8: NOTES
C9: (g/mol) | D9: °C | E9: °C | F9: Ref. | G9: (Pa) | H9: Ref. | I9: (g/m³ or mg/L) | J9: Ref. | K9: (Pa·m³/mol) | L9: Ref. | M9: (hours) | N9: Ref. | O9: (hours) | P9: Ref. | Q9: (hours) | R9: Ref. | S9: (hours) | T9: Ref. | U9: (hours) | V9: Ref. | W9: (hours) | X9: Ref. | Y9: (hours) | Z9: Ref. | AB9: Ref. | AC9: unitless | AD9: unitless (m³/m³) | AE9: Ref. | AF9: unitless | AG9: Ref. | AH9: L/kg | AI9: Ref. | AJ9: L/kg | AK9: Ref. | AL9: L/kg | AM9: Ref. | AN9: L/kg | AO9: Ref.
B10: Specimen Type 1 | C10: 250 | D10: 25 | E10: 275 | G10: 0.02 | I10: 30 | K10: =IF(OR(B10="",G10="",B10="-",G10="-"),"",G10*C10/I10) -> 0.1666666667 | M10: 17 | O10: 17 | Q10: 55 | S10: 55 | U10: 55 | W10: 170 | Y10: 170 | AA10: 2.5 | AC10: =IF(OR(AA10="",AA10="-"),"",0.35*10^AA10) -> 110.6797181 | AP10: Example values for type 1 chemicals such as benzene
B11: Specimen Type 2 | C11: 252.3 | D11: 25 | E11: - | G11: - | I11: - | K11: =IF(OR(B11="",G11="",B11="-",G11="-"),"",G11*C11/I11) ->  | M11: 17 | O11: 170 | Q11: 55 | S11: 170 | U11: 170 | W11: 170 | Y11: 170 | AC11: =IF(OR(AA11="",AA11="-"),"",0.35*10^AA11) ->  | AD11: 6.72e-05 | AF11: 67.9 | AH11: 3.89 | AJ11: 7.78 | AL11: 7.78 | AN11: 15.2 | AP11: Example values for type 2 chemical such as alkylbenzene sulfonates
B12: Specimen Type 3 | C12: 131.4 | D12: 25 | E12: - | G12: - | I12: - | M12: 17 | O12: 17 | Q12: 55 | S12: 55 | U12: 55 | W12: 170 | Y12: 170 | AD12: 15000 | AF12: 1010000 | AH12: 58000 | AJ12: 116000 | AL12: 116000 | AN12: 226000 | AP12: Example values for type 3 chemicals such as mineral oil
B13: Benzene | C13: 78 | D13: 25 | E13: 5.35 | G13: 12700 | I13: 1780 | K13: 556.5168539 | M13: 315.58 | N13: EAS-E Suite Database | O13: 315.58 | P13: Assumption made that 1/2 life in air can be used | Q13: 331.1 | R13: EAS-E Suite Database | S13: 2979.92 | T13: Assumption made that 1/2 life in sediment can be used | U13: 9.2 | V13: EAS-E Suite Database | W13: 662.205 | X13: EAS-E Suite Database | Y13: 2979.92 | Z13: EAS-E Suite Database | AA13: 2.13 | AC13: 47.21370089
B14: Toluene | C14: 92.13 | D14: 25 | E14: -95 | G14: 3800 | I14: 515 | K14: 679.7941748 | M14: 64.93 | N14: EAS-E Suite Database | O14: 64.93 | P14: Assumption made that 1/2 life in air can be used | Q14: 238.865 | R14: EAS-E Suite Database | S14: 2149.75 | T14: Assumption made that 1/2 life in sediment can be used | U14: 15.42 | V14: EAS-E Suite Database | W14: 477.725 | X14: EAS-E Suite Database | Y14: 2149.75 | Z14: EAS-E Suite Database | AA14: 2.69 | AC14: 171.4225868
B15: Chlorobenzene | C15: 112.6 | D15: 25 | E15: -45.6 | G15: 1580 | I15: 484 | K15: 367.5785124 | M15: 500.11 | N15: EAS-E Suite Database | O15: 500.11 | P15: Assumption made that 1/2 life in air can be used | Q15: 602.2 | R15: EAS-E Suite Database | S15: 5419.8 | T15: Assumption made that 1/2 life in sediment can be used | U15: 2.3 | V15: EAS-E Suite Database | W15: 1204.4 | X15: EAS-E Suite Database | Y15: 5419.8 | Z15: EAS-E Suite Database | AA15: 2.8 | AC15: 220.8350706
B16: 1,4-Dichlorobenzene | C16: 147.01 | D16: 25 | E16: 53.1 | G16: 130 | I16: 83 | K16: 230.2566265 | M16: 620.3 | N16: EAS-E Suite Database | O16: 620.3 | P16: Assumption made that 1/2 life in air can be used | Q16: 1239 | R16: EAS-E Suite Database | S16: 12390 | T16: Assumption made that 1/2 life in sediment can be used | U16: 299.25 | V16: EAS-E Suite Database | W16: 2477.9 | X16: EAS-E Suite Database | Y16: 12390 | Z16: EAS-E Suite Database | AA16: 3.4 | AC16: 879.160251
B17: Hexachlorobenzene | C17: 284.8 | D17: 25 | E17: 230 | G17: 0.0023 | I17: 0.005 | K17: 131.008 | M17: 7351.7 | N17: EAS-E Suite Database | O17: 7351.7 | P17: Assumption made that 1/2 life in air can be used | Q17: 14017 | R17: EAS-E Suite Database | S17: 140170 | T17: Assumption made that 1/2 life in sediment can be used | U17: 6542.95 | V17: EAS-E Suite Database | W17: 28033 | X17: EAS-E Suite Database | Y17: 140170 | Z17: EAS-E Suite Database | AA17: 5.5 | AC17: 110679.7181
B18: N-hexane | C18: 86.17 | D18: 25 | E18: -95 | G18: 20200 | I18: 9.5 | K18: 183224.6316 | M18: 74.05 | N18: EAS-E Suite Database | O18: 74.05 | P18: Assumption made that 1/2 life in air can be used | Q18: 152.8 | R18: EAS-E Suite Database | S18: 1375.2 | T18: Assumption made that 1/2 life in sediment can be used | U18: 8.78 | V18: EAS-E Suite Database | W18: 305.595 | X18: EAS-E Suite Database | Y18: 1375.2 | Z18: EAS-E Suite Database | AA18: 4.11 | AC18: 4508.873431
B19: Tricholoroethylene | C19: 131.39 | D19: 25 | E19: -73 | G19: 9900 | I19: 1100 | K19: 1182.51 | M19: 191.85 | N19: EAS-E Suite Database | O19: 191.85 | P19: Assumption made that 1/2 life in air can be used | Q19: 1028.6 | R19: EAS-E Suite Database | S19: 9257.2 | T19: Assumption made that 1/2 life in sediment can be used | U19: 9.35 | V19: EAS-E Suite Database | W19: 2057.2 | X19: EAS-E Suite Database | Y19: 9257.2 | Z19: EAS-E Suite Database | AA19: 2.53 | AC19: 118.5954546
B20: 1-Pentanol | C20: 88.149 | D20: 25 | E20: -78.2 | G20: 300 | I20: 22000 | K20: 1.202031818 | M20: 34.69 | N20: EAS-E Suite Database | O20: 34.69 | P20: Assumption made that 1/2 life in air can be used | Q20: 126.5 | R20: EAS-E Suite Database | S20: 1138.5 | T20: Assumption made that 1/2 life in sediment can be used | U20: 0.41 | V20: EAS-E Suite Database | W20: 253 | X20: EAS-E Suite Database | Y20: 1138.5 | Z20: EAS-E Suite Database | AA20: 1.5 | AC20: 11.06797181
B21: Aniline | C21: 93.12 | D21: 25 | E21: -6.3 | G21: 65.19 | I21: 36070 | K21: 0.1682975548 | M21: 3.42 | N21: EAS-E Suite Database | O21: 3.42 | P21: Assumption made that 1/2 life in air can be used | Q21: 573.71 | R21: EAS-E Suite Database | S21: 5163.4 | T21: Assumption made that 1/2 life in sediment can be used | U21: 3.99 | V21: EAS-E Suite Database | W21: 1147.4 | X21: EAS-E Suite Database | Y21: 5163.4 | Z21: EAS-E Suite Database | AA21: 0.9 | AC21: 2.780148822
B22: Naphthalene | C22: 128.19 | D22: 25 | E22: 80.5 | G22: 10.4 | I22: 31 | K22: 43.00567742 | M22: 8.63 | N22: EAS-E Suite Database | O22: 8.63 | P22: Assumption made that 1/2 life in air can be used | Q22: 414.99 | R22: EAS-E Suite Database | S22: 1267.7 | T22: Assumption made that 1/2 life in sediment can be used | U22: 61.81 | V22: EAS-E Suite Database | W22: 829.99 | X22: EAS-E Suite Database | Y22: 1267.7 | Z22: EAS-E Suite Database | AA22: 3.37 | AC22: 820.4800854
B23: Phenanthrene | C23: 178.2 | D23: 25 | E23: 101 | G23: 0.02 | I23: 1.1 | K23: 3.24 | M23: 7.32 | N23: EAS-E Suite Database | O23: 7.32 | P23: Assumption made that 1/2 life in air can be used | Q23: 618.245 | R23: EAS-E Suite Database | S23: 3413.15 | T23: Assumption made that 1/2 life in sediment can be used | U23: 119.13 | V23: EAS-E Suite Database | W23: 1236.48 | X23: EAS-E Suite Database | Y23: 3413.15 | Z23: EAS-E Suite Database | AA23: 4.57 | AC23: 13003.73302
B24: Pyrene | C24: 202.3 | D24: 25 | E24: 156 | G24: 0.0006 | I24: 0.132 | K24: 0.9195454545 | M24: 3.97 | N24: EAS-E Suite Database | O24: 3.97 | P24: Assumption made that 1/2 life in air can be used | Q24: 4988.75 | R24: EAS-E Suite Database | S24: 64615 | T24: Assumption made that 1/2 life in sediment can be used | U24: 50.01 | V24: EAS-E Suite Database | W24: 9977.4 | X24: EAS-E Suite Database | Y24: 64615 | Z24: EAS-E Suite Database | AA24: 5.18 | AC24: 52974.6437
B25: PCB-15 | C25: 223.1 | D25: 25 | E25: 149 | G25: 0.0048 | I25: 0.06 | K25: 17.848 | M25: 192.54 | N25: EAS-E Suite Database | O25: 192.54 | P25: Assumption made that 1/2 life in air can be used | Q25: 1758.4 | R25: EAS-E Suite Database | S25: 15826 | T25: Assumption made that 1/2 life in sediment can be used | U25: 567.66 | V25: EAS-E Suite Database | W25: 3516.9 | X25: EAS-E Suite Database | Y25: 15826 | Z25: EAS-E Suite Database | AA25: 5.3 | AC25: 69834.18102
B26: PCB-52 | C26: 292 | D26: 25 | E26: 87 | G26: 0.0049 | I26: 0.03 | K26: 47.69333333 | M26: 527.4 | N26: EAS-E Suite Database | O26: 527.4 | P26: Assumption made that 1/2 life in air can be used | Q26: 5914.2 | R26: EAS-E Suite Database | S26: 53227 | T26: Assumption made that 1/2 life in sediment can be used | U26: 1853.53 | V26: EAS-E Suite Database | W26: 11828 | X26: EAS-E Suite Database | Y26: 53227 | Z26: EAS-E Suite Database | AA26: 6.1 | AC26: 440623.8941
B27: PCB-209 | C27: 498.7 | D27: 25 | E27: 305.9 | G27: 5.02e-08 | I27: 1e-05 | K27: 2.503474 | M27: 21193 | N27: EAS-E Suite Database | O27: 21193 | P27: Assumption made that 1/2 life in air can be used | Q27: 81709 | R27: EAS-E Suite Database | S27: 735380 | T27: Assumption made that 1/2 life in sediment can be used | U27: 17534.52 | V27: EAS-E Suite Database | W27: 163420 | X27: EAS-E Suite Database | Y27: 735380 | Z27: EAS-E Suite Database | AA27: 8.26 | AC27: 63689530.05
B28: Dibenzo-p-dioxin | C28: 184 | D28: 25 | E28: 123 | G28: 0.055 | I28: 0.865 | K28: 11.69942197 | M28: 32.09 | N28: EAS-E Suite Database | O28: 32.09 | P28: Assumption made that 1/2 life in air can be used | Q28: 390.33 | R28: EAS-E Suite Database | S28: 3513 | T28: Assumption made that 1/2 life in sediment can be used | U28: 32.32 | V28: EAS-E Suite Database | W28: 780.67 | X28: EAS-E Suite Database | Y28: 3513 | Z28: EAS-E Suite Database | AA28: 4.3 | AC28: 6983.418102
B29: 4-chlorophenol | C29: 128.56 | D29: 25 | E29: 43 | G29: 20 | I29: 27000 | K29: 0.09522962963 | M29: 39.01 | N29: EAS-E Suite Database | O29: 39.01 | P29: Assumption made that 1/2 life in air can be used | Q29: 597.61 | R29: EAS-E Suite Database | S29: 5378.5 | T29: Assumption made that 1/2 life in sediment can be used | U29: 9.25 | V29: EAS-E Suite Database | W29: 1195.2 | X29: EAS-E Suite Database | Y29: 5378.5 | Z29: EAS-E Suite Database | AA29: 2.4 | AC29: 87.9160251
B30: Pentachlorophenol | C30: 266.34 | D30: 25 | E30: 190 | G30: 0.00415 | I30: 14 | K30: 0.07895078571 | M30: 597.91 | N30: EAS-E Suite Database | O30: 597.91 | P30: Assumption made that 1/2 life in air can be used | Q30: 6759.9 | R30: EAS-E Suite Database | S30: 67599 | T30: Assumption made that 1/2 life in sediment can be used | U30: 15 | V30: EAS-E Suite Database | W30: 13520 | X30: EAS-E Suite Database | Y30: 67599 | Z30: EAS-E Suite Database | AA30: 5.05 | AC30: 39270.6459
B31: DEHP | C31: 390.54 | D31: 25 | E31: -50 | G31: 1.33e-05 | I31: 0.285 | K31: 0.0182252 | M31: 9.41 | N31: EAS-E Suite Database | O31: 9.41 | P31: Assumption made that 1/2 life in air can be used | Q31: 115.11 | R31: EAS-E Suite Database | S31: 1151.1 | T31: Assumption made that 1/2 life in sediment can be used | U31: 66.23 | V31: EAS-E Suite Database | W31: 230.21 | X31: EAS-E Suite Database | Y31: 1151.1 | Z31: EAS-E Suite Database | AA31: 5.11 | AC31: 45088.73431
B32: p,p'-DDT | C32: 354.5 | D32: 25 | E32: 108.5 | G32: 2e-05 | I32: 0.0055 | K32: 1.289090909 | M32: 112.1 | N32: EAS-E Suite Database | O32: 112.1 | P32: Assumption made that 1/2 life in air can be used | Q32: 14472 | R32: EAS-E Suite Database | S32: 130250 | T32: Assumption made that 1/2 life in sediment can be used | U32: 2030.97 | V32: EAS-E Suite Database | W32: 28945 | X32: EAS-E Suite Database | Y32: 130250 | Z32: EAS-E Suite Database | AA32: 6.19 | AC32: 542085.8166
B33: Lindane | C33: 290.85 | D33: 25 | E33: 112 | G33: 0.00374 | I33: 7.3 | K33: 0.1490108219 | M33: 1044.7 | N33: EAS-E Suite Database | O33: 1044.7 | P33: Assumption made that 1/2 life in air can be used | Q33: 4392.9 | R33: EAS-E Suite Database | S33: 43929 | T33: Assumption made that 1/2 life in sediment can be used | U33: 948.5 | V33: EAS-E Suite Database | W33: 8785.8 | X33: EAS-E Suite Database | Y33: 43929 | Z33: EAS-E Suite Database | AA33: 3.7 | AC33: 1754.155318
B34: Atrazine | C34: 215.68 | D34: 25 | E34: 174 | G34: 4e-05 | I34: 30 | K34: 0.0002875733333 | M34: 9.33 | N34: EAS-E Suite Database | O34: 9.33 | P34: Assumption made that 1/2 life in air can be used | Q34: 2505.2 | R34: EAS-E Suite Database | S34: 25052 | T34: Assumption made that 1/2 life in sediment can be used | U34: 2.14 | V34: EAS-E Suite Database | W34: 5010.4 | X34: EAS-E Suite Database | Y34: 25052 | Z34: EAS-E Suite Database | AA34: 2.75 | AC34: 196.8194638
B35: LAS | C35: 348 | D35: 25 | G35: - | M35: 24 | O35: 24 | Q35: 24 | S35: 24 | U35: 24 | W35: 480 | Y35: 96 | AD35: 0 | AF35: 100 | AH35: 20 | AJ35: 570 | AL35: 570 | AN35: 250
B36: Hypothene | C36: 200 | D36: 27.5 | E36: 0 | G36: 1 | I36: 20 | K36: 10 | M36: 693 | O36: 100000000000 | Q36: 693 | S36: 100000000000 | U36: 100000000000 | W36: 69.3 | Y36: 6930 | AA36: 4 | AC36: 3500 | AP36: Hypothetical chemical
B37: PCB 105 | C37: 326.43 | D37: 25 | E37: 125 | G37: 0.00066661 | K37: 63.48 | M37: 1150 | O37: 1150 | Q37: 10847 | S37: 10847 | U37: 3500 | W37: 21700 | Y37: 97620 | AA37: 6.79 | AC37: 2158082.507
B38: Benzo[a]pyrene | C38: 252.316 | D38: 25 | E38: 175 | G38: 7e-07 | K38: 0.0463 | M38: 7.7 | N38: Assumption made that 1/2 life in air can be used | O38: 7.7 | P38: Assumption made that 1/2 life in air can be used | Q38: 7058.9 | R38: EAS-E Suite Database | S38: 63532 | T38: Assumption made that 1/2 life in sediment can be used | U38: 26.77 | V38: EAS-E Suite Database | W38: 14118.3 | X38: EAS-E Suite Database | Y38: 63532 | Z38: EAS-E Suite Database | AA38: 6.04 | AC38: 383767.3687
K68: =IF(OR(B68="",G68="",B68="-",G68="-"),"",G68*C68/I68) -> 
AC72: =IF(OR(AA72="",AA72="-"),"",0.35*10^AA72) -> 
K132: =IF(OR(B132="",G132="",B132="-",G132="-"),"",G132*C132/I132) -> 
AC136: =IF(OR(AA136="",AA136="-"),"",0.35*10^AA136) -> 
K196: =IF(OR(B196="",G196="",B196="-",G196="-"),"",G196*C196/I196) -> 
AC200: =IF(OR(AA200="",AA200="-"),"",0.35*10^AA200) -> 
K260: =IF(OR(B260="",G260="",B260="-",G260="-"),"",G260*C260/I260) -> 
AC264: =IF(OR(AA264="",AA264="-"),"",0.35*10^AA264) -> 
K324: =IF(OR(B324="",G324="",B324="-",G324="-"),"",G324*C324/I324) -> 
AC328: =IF(OR(AA328="",AA328="-"),"",0.35*10^AA328) -> 
K388: =IF(OR(B388="",G388="",B388="-",G388="-"),"",G388*C388/I388) -> 
K452: =IF(OR(B452="",G452="",B452="-",G452="-"),"",G452*C452/I452) -> 
K516: =IF(OR(B516="",G516="",B516="-",G516="-"),"",G516*C516/I516) -> 
K580: =IF(OR(B580="",G580="",B580="-",G580="-"),"",G580*C580/I580) -> 
K644: =IF(OR(B644="",G644="",B644="-",G644="-"),"",G644*C644/I644) -> 
K708: =IF(OR(B708="",G708="",B708="-",G708="-"),"",G708*C708/I708) -> 
K772: =IF(OR(B772="",G772="",B772="-",G772="-"),"",G772*C772/I772) -> 
K836: =IF(OR(B836="",G836="",B836="-",G836="-"),"",G836*C836/I836) -> 
K900: =IF(OR(B900="",G900="",B900="-",G900="-"),"",G900*C900/I900) -> 
K964: =IF(OR(B964="",G964="",B964="-",G964="-"),"",G964*C964/I964) -> 
K1028: =IF(OR(B1028="",G1028="",B1028="-",G1028="-"),"",G1028*C1028/I1028) -> 
K1092: =IF(OR(B1092="",G1092="",B1092="-",G1092="-"),"",G1092*C1092/I1092) -> 
K1156: =IF(OR(B1156="",G1156="",B1156="-",G1156="-"),"",G1156*C1156/I1156) -> 
K1220: =IF(OR(B1220="",G1220="",B1220="-",G1220="-"),"",G1220*C1220/I1220) -> 
K1284: =IF(OR(B1284="",G1284="",B1284="-",G1284="-"),"",G1284*C1284/I1284) -> 
K1348: =IF(OR(B1348="",G1348="",B1348="-",G1348="-"),"",G1348*C1348/I1348) -> 
K1412: =IF(OR(B1412="",G1412="",B1412="-",G1412="-"),"",G1412*C1412/I1412) -> 
K1476: =IF(OR(B1476="",G1476="",B1476="-",G1476="-"),"",G1476*C1476/I1476) -> 
K1540: =IF(OR(B1540="",G1540="",B1540="-",G1540="-"),"",G1540*C1540/I1540) -> 
K1604: =IF(OR(B1604="",G1604="",B1604="-",G1604="-"),"",G1604*C1604/I1604) -> 
K1668: =IF(OR(B1668="",G1668="",B1668="-",G1668="-"),"",G1668*C1668/I1668) -> 
K1732: =IF(OR(B1732="",G1732="",B1732="-",G1732="-"),"",G1732*C1732/I1732) -> 
K1796: =IF(OR(B1796="",G1796="",B1796="-",G1796="-"),"",G1796*C1796/I1796) -> 
K1860: =IF(OR(B1860="",G1860="",B1860="-",G1860="-"),"",G1860*C1860/I1860) -> 
K1924: =IF(OR(B1924="",G1924="",B1924="-",G1924="-"),"",G1924*C1924/I1924) -> 
K1988: =IF(OR(B1988="",G1988="",B1988="-",G1988="-"),"",G1988*C1988/I1988) -> 
... 41 more rows

Sheet Environment Database
B7: Volume Fractions | J7: Area (m2) | N7: Depth (m) | R7: Advective Flow Residence Times | U7: Densities for subcompartments (kg/m³) | AE7: Organic Carbon (g/g) | AI7: Transport Velocities (m/h) | AU7: Scavenging Ratio
A8: Name | B8: Aerosol in Air | C8: Susp. Particles in Water | D8: Fish in Water | E8: Soil in Air | F8: Water in Soil | G8: Solids ins Soil | H8: Water in Sediment | I8: Solids in Sediment | J8: Air | K8: Water | L8: Soil | M8: Sediment | N8: Air | O8: Water | P8: Soil | Q8: Sediment | R8: Air | S8: Water | T8: Sediment (burial) | U8: Air in Air | V8: Aerosol in Air | W8: Water in Water | X8: Susp. Particles in Water | Y8: Fish in Water | Z8: Air in Soil | AA8: Water in Soil | AB8: Solid in Soil | AC8: Water in Sediment | AD8: Solid in Sediment | AE8: Susp. Particles | AF8: Fish Lipid | AG8: Soil | AH8: Sediment | AI8: Air side air-water MTC | AJ8: Water side air-water MTC | AK8: Rain rate | AL8: Aerosol dry deposition | AM8: Soil-air phase diffusion MTC | AN8: Soil-water phase diffusion MTC | AO8: Soil-air boundary layer MTC | AP8: Sediment-water diffusion MTC | AQ8: Sediment deposition | AR8: Sediment resuspension | AS8: Soil-water runoff rate | AT8: Soil-solids runoff rate | AU8: (unitless) | AV8: NOTES
A10: Default | B10: =0.00000000002 -> 2e-11 | C10: =0.000005 -> 5e-06 | D10: =0.000001 -> 1e-06 | E10: 0.2 | F10: 0.3 | G10: 0.5 | H10: 0.8 | I10: 0.2 | J10: 298000000000 | K10: 12700000000 | L10: =J10-K10 -> 285300000000 | M10: =K10 -> 12700000000 | N10: 2000 | O10: =IF(K10=0,0,20) -> 20 | P10: 0.1 | Q10: 0.01 | R10: 40 | S10: 1000 | T10: 50000 | U10: 1.185 | V10: 2400 | W10: 1000 | X10: 2400 | Y10: 1000 | Z10: 1.185 | AA10: 1000 | AB10: 2400 | AC10: 1000 | AD10: 2400 | AE10: 0.2 | AF10: 0.048 | AG10: 0.02 | AH10: 0.04 | AI10: 5 | AJ10: 0.05 | AK10: 0.001 | AL10: 10 | AM10: 0.02 | AN10: 1e-05 | AO10: 5 | AP10: 0.0001 | AQ10: 5e-07 | AR10: 2e-07 | AS10: 5e-05 | AT10: 1e-08 | AU10: 200000
A11: Hypothene | B11: 0 | C11: 0 | D11: 0 | E11: 0 | F11: 0.377 | G11: 0.623 | H11: 0.377 | I11: 0.623 | J11: 3000000 | K11: 350000 | L11: 450000 | M11: 350000 | N11: 2000 | O11: 20 | P11: 0.1 | Q11: 0.06 | R11: 600 | S11: 7000 | T11: 100000000000 | U11: 1.175556 | V11: 2400 | W11: 1000 | X11: 1000 | Y11: 1000 | Z11: 1.175556 | AA11: 1000 | AB11: 2400 | AC11: 1000 | AD11: 2400 | AE11: 0.02 | AF11: 0.05 | AG11: 0.02 | AH11: 0.04 | AI11: 5 | AJ11: 0.05 | AK11: 0 | AL11: 0 | AM11: 1 | AN11: 1e-05 | AO11: 5 | AP11: 0.0001 | AQ11: 0 | AR11: 0 | AS11: 0 | AT11: 0 | AU11: 200000
A12: River Reach | B12: 2e-11 | C12: 5e-06 | D12: 1e-06 | E12: 0.2 | F12: 0.3 | G12: 0.5 | H12: 0.8 | I12: 0.2 | J12: 100000000 | K12: 14500000 | L12: 85500000 | M12: 14500000 | N12: 1000 | O12: 7.5 | P12: 0.2 | Q12: 0.05 | R12: 1 | S12: 6.35965 | T12: 145 | U12: 1.185 | V12: 2000 | W12: 1000 | X12: 1500 | Y12: 1000 | Z12: 1.185 | AA12: 1000 | AB12: 2400 | AC12: 1000 | AD12: 2400 | AE12: 0.02 | AF12: 0.05 | AG12: 0.02 | AH12: 0.04 | AI12: 5 | AJ12: 0.05 | AK12: 0.0001 | AL12: 6e-10 | AM12: 0.02 | AN12: 1e-05 | AO12: 5 | AP12: 0.0001 | AQ12: 5e-07 | AR12: 2e-07 | AS12: 5e-05 | AT12: 1e-08 | AU12: 200000
A13: EQC 2012 Hughes et al. | B13: 2e-11 | C13: 5e-06 | D13: 1e-06 | E13: 0.2 | F13: 0.3 | G13: 0.5 | H13: 0.8 | I13: 0.2 | J13: 100000000000 | K13: 10000000000 | L13: 90000000000 | M13: 10000000000 | N13: 1000 | O13: 20 | P13: 0.2 | Q13: 0.05 | R13: 100 | S13: 1000 | T13: 50000 | U13: 1.2 | V13: 2000 | W13: 1000 | X13: 1500 | Y13: 1000 | Z13: 1.2 | AA13: 1000 | AB13: 2400 | AC13: 1000 | AD13: 2400 | AE13: 0.2 | AF13: 0.05 | AG13: 0.02 | AH13: 0.04 | AI13: 5 | AJ13: 0.05 | AK13: 0.0001 | AL13: 6e-10 | AM13: 0.02 | AN13: 1e-05 | AO13: 5 | AP13: 0.0001 | AQ13: 5e-07 | AR13: 2e-07 | AS13: 5e-05 | AT13: 1e-08 | AU13: 200000
